fUSD/lending_fUSD_20240614
["ID","MTS","AMOUNT","RATE_DAILY","PERIOD"]
[329435842,1718339524238,-500.0,0.00026301,3]
[329435843,1718339524261,-590.04,0.00026301,3]
[329435844,1718339524278,-500.0,0.00026301,3]
[329435845,1718339524305,-622.11,0.00026301,3]
[329435846,1718339524319,-1058.89,0.00026301,3]
[329435847,1718339524334,-500.0,0.00026301,3]
[329435848,1718339524368,-2428.66,0.00026301,3]
[329435849,1718339524398,-592.39,0.00026301,3]
[329435850,1718339524438,-2903.07,0.00026301,3]
[329435851,1718339524454,-1440.79,0.00026301,3]
[329435852,1718339524489,-592.07,0.00026301,3]
[329435853,1718339524513,-1382.49,0.00026301,3]
[329435854,1718339524531,-500.0,0.00026301,3]
[329435855,1718339524686,-3488.55,0.00026301,3]
[329435856,1718339524707,-685.96,0.00026301,3]
[329435857,1718339524734,-1913.72,0.00026301,3]
[329435858,1718339524747,-7564.41,0.00026301,3]
[329435859,1718339524759,-1286.09,0.00026301,3]
[329435860,1718339524776,-246.74566608,0.00026301,3]
[329435861,1718339524794,-586.2,0.00026301,3]
[329435862,1718339524805,-812.79,0.00026301,3]
[329435863,1718339524836,-500.0,0.00026301,3]
[329435864,1718339524849,-500.0,0.00026301,3]
[329435865,1718339524872,-500.0,0.00026301,3]
[329435866,1718339524884,-895.63,0.00026301,3]
[329435867,1718339524913,-3118.28,0.00026301,3]
[329435868,1718339524940,-500.0,0.00026301,3]
[329435869,1718339524954,-1228.35,0.00026301,3]
[329435870,1718339524973,-500.0,0.00026301,3]
[329435871,1718339524999,-793.01,0.00026301,3]
[329435872,1718339525016,-500.0,0.00026301,3]
[329435873,1718339525060,-500.0,0.00026301,3]
[329435874,1718339525081,-500.0,0.00026301,3]
[329435875,1718339525094,-500.0,0.00026301,3]
[329435876,1718339525108,-1794.39,0.00026301,3]
[329435877,1718339525122,-500.0,0.00026301,3]
[329435878,1718339525136,-14855.44701783,0.00026324,2]
[329435879,1718339525155,-275.5,0.000264,2]
[329435880,1718339525175,-216.0,0.0002644,2]
[329435881,1718339525197,-6650.0,0.00026463,7]
[329435882,1718339525263,-1288.81460087,0.00026491,2]
[329435883,1718339525279,-190.32,0.00026516,2]
[329435884,1718339525302,-177.26,0.00026516,2]
[329435885,1718339525330,-343.43,0.00026522,2]
[329435886,1718339525343,-804.3,0.00026572,3]
[329435887,1718339525355,-390.87357846,0.00026573,3]
[329435888,1718339525366,-500.0,0.00026573,3]
[329435889,1718339525391,-500.0,0.00026573,3]
[329435890,1718339525410,-500.0,0.00026573,3]
[329435891,1718339525421,-523.82,0.00026573,3]
[329435892,1718339525435,-500.0,0.00026573,3]
[329435893,1718339525447,-500.0,0.00026573,3]
[329435894,1718339525458,-500.0,0.00026573,3]
[329435895,1718339525490,-500.0,0.00026573,3]
[329435896,1718339525501,-500.0,0.00026573,3]
[329435897,1718339525516,-500.0,0.00026573,3]
[329435898,1718339525540,-500.0,0.00026573,3]
[329435899,1718339525551,-500.0,0.00026573,3]
[329435900,1718339525562,-500.0,0.00026573,3]
[329435901,1718339525601,-500.0,0.00026573,3]
[329435902,1718339525612,-500.0,0.00026573,3]
[329435903,1718339525639,-500.0,0.00026573,3]
[329435904,1718339525652,-500.0,0.00026573,3]
[329435905,1718339525667,-500.0,0.00026573,3]
[329435906,1718339525684,-182.81278558,0.00026573,3]
[329435907,1718339525695,-573.06461529,0.00026573,3]
[329435908,1718339525707,-500.0,0.00026573,3]
[329435909,1718339525716,-500.0,0.00026573,3]
[329435910,1718339525726,-500.0,0.00026573,3]
[329435911,1718339525738,-500.0,0.00026573,3]
[329435912,1718339525756,-500.0,0.00026573,3]
[329435913,1718339525767,-500.0,0.00026573,3]
[329435914,1718339525779,-500.0,0.00026573,3]
[329435915,1718339525790,-1564.27,0.00026573,3]
[329435916,1718339525802,-500.0,0.00026573,3]
[329435917,1718339525819,-500.0,0.00026573,3]
[329435918,1718339525830,-500.0,0.00026573,3]
[329435919,1718339525840,-500.0,0.00026573,3]
[329435920,1718339525878,-589.39,0.00026573,3]
[329435921,1718339525914,-500.0,0.00026573,3]
[329435922,1718339525940,-500.0,0.00026573,3]
[329435923,1718339525954,-739.0,0.00026573,3]
[329435924,1718339525968,-500.0,0.00026573,3]
[329435925,1718339525988,-500.0,0.00026573,3]
[329435926,1718339526000,-500.0,0.00026573,3]
[329435927,1718339526034,-531.15,0.00026573,3]
[329435928,1718339526093,-542.84,0.00026573,3]
[329435929,1718339526105,-1349.75,0.00026573,3]
[329435930,1718339526119,-701.93,0.00026573,3]
[329435931,1718339526136,-371.05679067,0.00026573,3]
[329435932,1718339526150,-999.06,0.00026573,3]
[329435933,1718339526161,-4942.89,0.00026573,3]
[329435934,1718339526173,-162.68232599,0.00026573,3]
[329435935,1718339526188,-447.31085139,0.00026574,3]
[329435936,1718339526228,-500.0,0.00026574,3]
[329435937,1718339526250,-500.0,0.00026574,3]
[329435938,1718339526262,-160.96091854,0.00026574,3]
[329435939,1718339526304,-539.9358287,0.00026574,3]
[329435940,1718339526314,-500.0,0.00026574,3]
[329435941,1718339526326,-500.0,0.00026574,3]
[329435942,1718339526338,-473.2784326,0.00026574,3]
[329435943,1718339526350,-500.0,0.00026574,3]
[329435944,1718339526362,-170.61566669,0.00026574,3]
[329435945,1718339526373,-500.0,0.00026574,3]
[329435946,1718339526384,-500.0,0.00026574,3]
[329435947,1718339526397,-336.43163534,0.00026574,3]
[329435948,1718339526408,-500.0,0.00026574,3]
[329435949,1718339526419,-500.0,0.00026574,3]
[329435950,1718339526432,-594.3667849,0.00026574,3]
[329435951,1718339526467,-500.0,0.00026574,3]
[329435952,1718339526500,-176.51911469,0.00026574,3]
[329435953,1718339526513,-818.16,0.00026574,3]
[329435954,1718339526531,-3270.76,0.00026574,3]
[329435955,1718339526546,-661.36,0.00026574,3]
[329435956,1718339526558,-502.95,0.00026574,3]
[329435957,1718339526573,-580.28,0.00026574,3]
[329435958,1718339526592,-500.0,0.00026575,3]
[329435959,1718339526612,-612.06,0.00026575,3]
[329435960,1718339526638,-500.0,0.00026575,3]
[329435961,1718339526652,-433.5312698,0.00026575,3]
[329435962,1718339526672,-500.0,0.00026575,3]
[329435963,1718339526685,-500.0,0.00026575,3]
[329435964,1718339526700,-546.58061534,0.00026575,3]
[329435965,1718339526713,-500.0,0.00026575,3]
[329435966,1718339526724,-500.0,0.00026575,3]
[329435967,1718339526737,-500.0,0.00026575,3]
[329435968,1718339526749,-500.0,0.00026575,3]
[329435969,1718339526760,-500.0,0.00026575,3]
[329435970,1718339526774,-500.0,0.00026575,3]
[329435971,1718339526789,-6561.12,0.00026575,3]
[329435972,1718339526802,-500.0,0.00026575,3]
[329435973,1718339526819,-531.91,0.00026575,3]
[329435974,1718339526832,-500.0,0.00026575,3]
[329435975,1718339526860,-500.0,0.00026575,3]
[329435976,1718339526884,-500.0,0.00026575,3]
[329435977,1718339526911,-500.0,0.00026575,3]
[329435978,1718339526933,-500.0,0.00026575,3]
[329435979,1718339526952,-500.0,0.00026575,3]
[329435980,1718339526978,-1004.96,0.00026575,3]
[329435981,1718339527002,-500.0,0.00026575,3]
[329435982,1718339527024,-500.0,0.00026575,3]
[329435983,1718339527064,-538.39,0.00026575,3]
[329435984,1718339527077,-1118.03,0.00026575,3]
[329435985,1718339527088,-714.57,0.00026575,3]
[329435986,1718339527103,-563.00303975,0.00026575,3]
[329435987,1718339527115,-608.47,0.00026575,3]
[329435988,1718339527126,-613.06,0.00026575,3]
[329435989,1718339527139,-1072.6,0.00026575,3]
[329435990,1718339527153,-956.0,0.00026575,3]
[329435991,1718339527168,-2671.76,0.00026575,3]
[329435992,1718339527180,-1819.66,0.00026575,3]
[329435993,1718339527194,-500.0,0.00026575,3]
[329435994,1718339527221,-933.79,0.00026575,3]
[329435995,1718339527235,-621.84,0.00026575,3]
[329435996,1718339527248,-500.0,0.00026575,3]
[329435997,1718339527259,-555.33,0.00026575,3]
[329435998,1718339527277,-675.64,0.00026575,3]
[329435999,1718339527293,-1522.73,0.00026575,3]
[329436000,1718339527308,-685.9,0.00026575,3]
[329436001,1718339527319,-1128.28,0.00026575,3]
[329436002,1718339527331,-568.14,0.00026575,3]
[329436003,1718339527344,-955.6,0.00026575,3]
[329436004,1718339527357,-550.81,0.00026575,3]
[329436005,1718339527380,-500.0,0.00026575,3]
[329436006,1718339527392,-500.0,0.00026575,3]
[329436007,1718339527416,-1291.78,0.00026575,3]
[329436008,1718339527427,-658.71,0.00026575,3]
[329436009,1718339527445,-856.95,0.00026575,3]
[329436010,1718339527462,-500.0,0.00026575,3]
[329436011,1718339527479,-231.77963064,0.00026575,3]
[329436012,1718339527491,-500.0,0.00026575,3]
[329436013,1718339527506,-500.0,0.00026575,3]
[329436014,1718339527530,-500.0,0.00026575,3]
[329436015,1718339527568,-500.0,0.00026575,3]
[329436016,1718339527580,-1024.96,0.00026575,3]
[329436017,1718339527597,-500.0,0.00026575,3]
[329436018,1718339527609,-2152.37,0.00026575,3]
[329436019,1718339527623,-599.85,0.00026575,3]
[329436020,1718339527636,-208.95788621,0.00026575,3]
[329436021,1718339527656,-500.0,0.00026575,3]
[329436022,1718339527668,-956.85,0.00026575,3]
[329436023,1718339527681,-1170.45,0.00026575,3]
[329436024,1718339527693,-1214.59,0.00026575,3]
[329436025,1718339527706,-500.0,0.00026575,3]
[329436026,1718339527718,-500.0,0.00026575,3]
[329436027,1718339527729,-500.0,0.00026575,3]
[329436028,1718339527746,-500.0,0.00026575,3]
[329436029,1718339527760,-376.76088724,0.00026575,3]
[329436030,1718339527783,-2473.73,0.00026575,3]
[329436031,1718339527797,-500.0,0.00026575,3]
[329436032,1718339527811,-500.0,0.00026575,3]
[329436033,1718339527833,-500.0,0.00026575,3]
[329436034,1718339527848,-805.87,0.00026575,3]
[329436035,1718339527863,-1116.43,0.00026575,3]
[329436036,1718339527882,-1036.04,0.00026575,3]
[329436037,1718339527895,-1345.04,0.00026575,3]
[329436038,1718339527910,-1427.39,0.00026575,3]
[329436039,1718339527926,-500.0,0.00026575,3]
[329436040,1718339527939,-500.0,0.00026575,3]
[329436041,1718339527974,-500.0,0.00026575,3]
[329436042,1718339528012,-500.0,0.00026575,3]
[329436043,1718339528034,-697.86,0.00026575,3]
[329436044,1718339528048,-500.0,0.00026575,3]
[329436045,1718339528061,-679.77,0.00026575,3]
[329436046,1718339528084,-500.0,0.00026575,3]
[329436047,1718339528095,-590.04,0.00026575,3]
[329436048,1718339528121,-500.0,0.00026575,3]
[329436049,1718339528138,-622.11,0.00026575,3]
[329436050,1718339528150,-1058.89,0.00026575,3]
[329436051,1718339528165,-500.0,0.00026575,3]
[329436052,1718339528182,-2428.66,0.00026575,3]
[329436053,1718339528204,-592.39,0.00026575,3]
[329436054,1718339528217,-2903.07,0.00026575,3]
[329436055,1718339528236,-1440.79,0.00026575,3]
[329436056,1718339528282,-592.07,0.00026575,3]
[329436057,1718339528303,-1382.49,0.00026575,3]
[329436058,1718339528314,-500.0,0.00026575,3]
[329436059,1718339528325,-3488.55,0.00026575,3]
[329436060,1718339528337,-685.96,0.00026575,3]
[329436061,1718339528365,-1913.72,0.00026575,3]
[329436062,1718339528380,-7564.41,0.00026575,3]
[329436063,1718339528411,-1286.09,0.00026575,3]
[329436064,1718339528451,-586.2,0.00026575,3]
[329436065,1718339528475,-812.79,0.00026575,3]
[329436066,1718339528499,-500.0,0.00026575,3]
[329436067,1718339528544,-500.0,0.00026575,3]
[329436068,1718339528562,-500.0,0.00026575,3]
[329436069,1718339528583,-895.63,0.00026575,3]
[329436070,1718339528596,-3118.28,0.00026575,3]
[329436071,1718339528623,-500.0,0.00026575,3]
[329436072,1718339528640,-1228.35,0.00026575,3]
[329436073,1718339528662,-500.0,0.00026575,3]
[329436074,1718339528674,-793.01,0.00026575,3]
[329436075,1718339528687,-500.0,0.00026575,3]
[329436076,1718339528712,-500.0,0.00026575,3]
[329436077,1718339528727,-500.0,0.00026575,3]
[329436078,1718339528746,-500.0,0.00026575,3]
[329436079,1718339528764,-1794.39,0.00026575,3]
[329436080,1718339528781,-500.0,0.00026575,3]
[329436081,1718339528828,-264.658905,0.00026575,2]
[329436082,1718339528851,-151.0,0.00026599,4]
[329436083,1718339528862,-747.24,0.000266,2]
[329436084,1718339528875,-152.0,0.00026736,6]
[329436085,1718339528888,-1005.1,0.000268,2]
[329436086,1718339528907,-319.5,0.000268,2]
[329436087,1718339528929,-4391.844611,0.00026831,2]
[329436088,1718339528945,-18262.3132458,0.00026831,2]
[329436089,1718339528990,-987.1380831,0.00026831,2]
[329436090,1718339529028,-6601.0145797,0.00026831,2]
[329436091,1718339529065,-2239.5606097,0.00026831,2]
[329436092,1718339529088,-150.2224988,0.00026831,2]
[329436093,1718339529142,-5659.6563117,0.00026831,2]
[329436094,1718339529168,-14855.44701783,0.00026835,2]
[329436095,1718339529192,-804.3,0.00026846,3]
[329436096,1718339529228,-434.04321331,0.00026847,3]
[329436097,1718339529407,-500.0,0.00026847,3]
[329436098,1718339529418,-500.0,0.00026847,3]
[329436099,1718339529429,-523.82,0.00026847,3]
[329436100,1718339529445,-500.0,0.00026847,3]
[329436101,1718339529457,-500.0,0.00026847,3]
[329436102,1718339529489,-500.0,0.00026847,3]
[329436103,1718339529500,-500.0,0.00026847,3]
[329436104,1718339529512,-500.0,0.00026847,3]
[329436105,1718339529526,-500.0,0.00026847,3]
[329436106,1718339529538,-425.72968082,0.00026847,3]
[329436107,1718339529592,-500.0,0.00026847,3]
[329436108,1718339529604,-500.0,0.00026847,3]
[329436109,1718339529615,-500.0,0.00026847,3]
[329436110,1718339529626,-500.0,0.00026847,3]
[329436111,1718339529649,-500.0,0.00026847,3]
[329436112,1718339529660,-500.0,0.00026847,3]
[329436113,1718339529683,-500.0,0.00026847,3]
[329436114,1718339529693,-500.0,0.00026847,3]
[329436115,1718339529707,-627.34161734,0.00026847,3]
[329436116,1718339529728,-500.0,0.00026847,3]
[329436117,1718339529745,-500.0,0.00026847,3]
[329436118,1718339529778,-500.0,0.00026847,3]
[329436119,1718339529798,-500.0,0.00026847,3]
[329436120,1718339529852,-500.0,0.00026847,3]
[329436121,1718339529863,-1564.27,0.00026847,3]
[329436122,1718339529889,-202.51004736,0.00026847,3]
[329436123,1718339529913,-500.0,0.00026847,3]
[329436124,1718339529924,-500.0,0.00026847,3]
[329436125,1718339529936,-500.0,0.00026847,3]
[329436126,1718339529947,-589.39,0.00026847,3]
[329436127,1718339529960,-500.0,0.00026847,3]
[329436128,1718339529973,-500.0,0.00026847,3]
[329436129,1718339529988,-739.0,0.00026847,3]
[329436130,1718339530009,-500.0,0.00026847,3]
[329436131,1718339530027,-500.0,0.00026847,3]
[329436132,1718339530055,-500.0,0.00026847,3]
[329436133,1718339530068,-531.15,0.00026847,3]
[329436134,1718339530080,-542.84,0.00026847,3]
[329436135,1718339530096,-1349.75,0.00026847,3]
[329436136,1718339530108,-701.93,0.00026847,3]
[329436137,1718339530124,-999.06,0.00026847,3]
[329436138,1718339530137,-4942.89,0.00026847,3]
[329436139,1718339530153,-522.46133671,0.00026848,3]
[329436140,1718339530168,-520.03804803,0.00026848,3]
[329436141,1718339530180,-500.0,0.00026848,3]
[329436142,1718339530196,-522.95197704,0.00026848,3]
[329436143,1718339530212,-193.45477209,0.00026848,3]
[329436144,1718339530230,-500.0,0.00026848,3]
[329436145,1718339530266,-500.0,0.00026848,3]
[329436146,1718339530281,-500.0,0.00026848,3]
[329436147,1718339530308,-500.0,0.00026848,3]
[329436148,1718339530321,-400.30253995,0.00026848,3]
[329436149,1718339530340,-818.16,0.00026848,3]
[329436150,1718339530380,-3270.76,0.00026848,3]
[329436151,1718339530404,-661.36,0.00026848,3]
[329436152,1718339530438,-502.95,0.00026848,3]
[329436153,1718339530464,-580.28,0.00026848,3]
[329436154,1718339530482,-500.0,0.00026849,3]
[329436155,1718339530518,-612.06,0.00026849,3]
[329436156,1718339530559,-500.0,0.00026849,3]
[329436157,1718339530593,-537.4297086,0.00026849,3]
[329436158,1718339530623,-593.05404446,0.00026849,3]
[329436159,1718339530655,-500.0,0.00026849,3]
[329436160,1718339530669,-500.0,0.00026849,3]
[329436161,1718339530697,-500.0,0.00026849,3]
[329436162,1718339530711,-500.0,0.00026849,3]
[329436163,1718339530724,-500.0,0.00026849,3]
[329436164,1718339530748,-500.0,0.00026849,3]
[329436165,1718339530780,-6561.12,0.00026849,3]
[329436166,1718339530799,-500.0,0.00026849,3]
[329436167,1718339530813,-531.91,0.00026849,3]
[329436168,1718339530826,-500.0,0.00026849,3]
[329436169,1718339530856,-500.0,0.00026849,3]
[329436170,1718339530869,-500.0,0.00026849,3]
[329436171,1718339530888,-500.0,0.00026849,3]
[329436172,1718339530910,-254.23662742,0.00026849,3]
[329436173,1718339530931,-500.0,0.00026849,3]
[329436174,1718339530962,-1004.96,0.00026849,3]
[329436175,1718339530991,-500.0,0.00026849,3]
[329436176,1718339531052,-500.0,0.00026849,3]
[329436177,1718339531071,-538.39,0.00026849,3]
[329436178,1718339531083,-1118.03,0.00026849,3]
[329436179,1718339531101,-714.57,0.00026849,3]
[329436180,1718339531121,-608.47,0.00026849,3]
[329436181,1718339531132,-613.06,0.00026849,3]
[329436182,1718339531148,-1072.6,0.00026849,3]
[329436183,1718339531162,-956.0,0.00026849,3]
[329436184,1718339531189,-2671.76,0.00026849,3]
[329436185,1718339531219,-1819.66,0.00026849,3]
[329436186,1718339531245,-568.6519442,0.00026849,3]
[329436187,1718339531276,-933.79,0.00026849,3]
[329436188,1718339531292,-621.84,0.00026849,3]
[329436189,1718339531320,-500.0,0.00026849,3]
[329436190,1718339531360,-555.33,0.00026849,3]
[329436191,1718339531372,-675.64,0.00026849,3]
[329436192,1718339531384,-1522.73,0.00026849,3]
[329436193,1718339531398,-685.9,0.00026849,3]
[329436194,1718339531409,-1128.28,0.00026849,3]
[329436195,1718339531421,-568.14,0.00026849,3]
[329436196,1718339531434,-955.6,0.00026849,3]
[329436197,1718339531476,-550.81,0.00026849,3]
[329436198,1718339531493,-500.0,0.00026849,3]
[329436199,1718339531520,-500.0,0.00026849,3]
[329436200,1718339531533,-1291.78,0.00026849,3]
[329436201,1718339531548,-658.71,0.00026849,3]
[329436202,1718339531564,-856.95,0.00026849,3]
[329436203,1718339531577,-500.0,0.00026849,3]
[329436204,1718339531592,-500.0,0.00026849,3]
[329436205,1718339531608,-500.0,0.00026849,3]
[329436206,1718339531630,-500.0,0.00026849,3]
[329436207,1718339531647,-500.0,0.00026849,3]
[329436208,1718339531672,-1024.96,0.00026849,3]
[329436209,1718339531686,-201.30403906,0.00026849,3]
[329436210,1718339531706,-2152.37,0.00026849,3]
[329436211,1718339531720,-599.85,0.00026849,3]
[329436212,1718339531738,-500.0,0.00026849,3]
[329436213,1718339531749,-956.85,0.00026849,3]
[329436214,1718339531762,-1170.45,0.00026849,3]
[329436215,1718339531781,-1214.59,0.00026849,3]
[329436216,1718339531796,-500.0,0.00026849,3]
[329436217,1718339531807,-500.0,0.00026849,3]
[329436218,1718339531831,-500.0,0.00026849,3]
[329436219,1718339531850,-500.0,0.00026849,3]
[329436220,1718339531863,-500.0,0.00026849,3]
[329436221,1718339531880,-2473.73,0.00026849,3]
[329436222,1718339531902,-500.0,0.00026849,3]
[329436223,1718339531925,-545.8650326,0.00026849,3]
[329436224,1718339531942,-805.87,0.00026849,3]
[329436225,1718339531954,-1116.43,0.00026849,3]
[329436226,1718339531970,-1036.04,0.00026849,3]
[329436227,1718339531983,-1345.04,0.00026849,3]
[329436228,1718339531999,-1427.39,0.00026849,3]
[329436229,1718339532013,-500.0,0.00026849,3]
[329436230,1718339532031,-500.0,0.00026849,3]
[329436231,1718339532044,-500.0,0.00026849,3]
[329436232,1718339532057,-500.0,0.00026849,3]
[329436233,1718339532076,-697.86,0.00026849,3]
[329436234,1718339532089,-500.0,0.00026849,3]
[329436235,1718339532103,-679.77,0.00026849,3]
[329436236,1718339532116,-500.0,0.00026849,3]
[329436237,1718339532128,-590.04,0.00026849,3]
[329436238,1718339532154,-500.0,0.00026849,3]
[329436239,1718339532166,-622.11,0.00026849,3]
[329436240,1718339532178,-1058.89,0.00026849,3]
[329436241,1718339532197,-500.0,0.00026849,3]
[329436242,1718339532221,-2428.66,0.00026849,3]
[329436243,1718339532235,-592.39,0.00026849,3]
[329436244,1718339532275,-2903.07,0.00026849,3]
[329436245,1718339532304,-1440.79,0.00026849,3]
[329436246,1718339532334,-592.07,0.00026849,3]
[329436247,1718339532347,-1382.49,0.00026849,3]
[329436248,1718339532359,-254.87915547,0.00026849,3]
[329436249,1718339532374,-3488.55,0.00026849,3]
[329436250,1718339532390,-685.96,0.00026849,3]
[329436251,1718339532401,-1913.72,0.00026849,3]
[329436252,1718339532425,-7564.41,0.00026849,3]
[329436253,1718339532453,-1286.09,0.00026849,3]
[329436254,1718339532488,-586.2,0.00026849,3]
[329436255,1718339532500,-500.0,0.00026849,3]
[329436256,1718339532530,-812.79,0.00026849,3]
[329436257,1718339532603,-500.0,0.00026849,3]
[329436258,1718339532615,-500.0,0.00026849,3]
[329436259,1718339532627,-895.63,0.00026849,3]
[329436260,1718339532639,-3118.28,0.00026849,3]
[329436261,1718339532655,-444.02130941,0.00026849,3]
[329436262,1718339532679,-1228.35,0.00026849,3]
[329436263,1718339532690,-500.0,0.00026849,3]
[329436264,1718339532705,-793.01,0.00026849,3]
[329436265,1718339532718,-500.0,0.00026849,3]
[329436266,1718339532855,-500.0,0.00026849,3]
[329436267,1718339532878,-500.0,0.00026849,3]
[329436268,1718339532908,-1794.39,0.00026849,3]
[329436269,1718339532920,-567.52711293,0.00026849,3]
[329436270,1718339532934,-500.0,0.00026849,3]
[329436271,1718339532949,-245.55973281,0.0002688,4]
[329436272,1718339532961,-50000.0,0.00027,6]
[329436273,1718339533003,-10572.44978801,0.00027,5]
[329436274,1718339533016,-569.53,0.00027,2]
[329436275,1718339533028,-14968.0,0.00027,2]
[329436276,1718339533039,-1000.0,0.00027,7]
[329436277,1718339533066,-548.46,0.00027053,2]
[329436278,1718339533077,-216.0,0.0002711,2]
[329436279,1718339533105,-804.3,0.0002712,3]
[329436280,1718339533136,-531.48683331,0.00027121,3]
[329436281,1718339533148,-500.0,0.00027121,3]
[329436282,1718339533160,-523.82,0.00027121,3]
[329436283,1718339533196,-500.0,0.00027121,3]
[329436284,1718339533212,-330.24023851,0.00027121,3]
[329436285,1718339533240,-500.0,0.00027121,3]
[329436286,1718339533251,-500.0,0.00027121,3]
[329436287,1718339533307,-500.0,0.00027121,3]
[329436288,1718339533368,-629.04556805,0.00027121,3]
[329436289,1718339533392,-503.16573601,0.00027121,3]
[329436290,1718339533408,-500.0,0.00027121,3]
[329436291,1718339533421,-500.0,0.00027121,3]
[329436292,1718339533432,-500.0,0.00027121,3]
[329436293,1718339533446,-500.0,0.00027121,3]
[329436294,1718339533462,-401.05905102,0.00027121,3]
[329436295,1718339533477,-500.0,0.00027121,3]
[329436296,1718339533504,-500.0,0.00027121,3]
[329436297,1718339533518,-500.0,0.00027121,3]
[329436298,1718339533528,-500.0,0.00027121,3]
[329436299,1718339533590,-500.0,0.00027121,3]
[329436300,1718339533620,-179.29496618,0.00027121,3]
[329436301,1718339533657,-500.0,0.00027121,3]
[329436302,1718339533684,-1564.27,0.00027121,3]
[329436303,1718339533716,-374.7264224,0.00027121,3]
[329436304,1718339533738,-500.0,0.00027121,3]
[329436305,1718339533754,-500.0,0.00027121,3]
[329436306,1718339533774,-589.39,0.00027121,3]
[329436307,1718339533797,-500.0,0.00027121,3]
[329436308,1718339533816,-500.0,0.00027121,3]
[329436309,1718339533835,-739.0,0.00027121,3]
[329436310,1718339533892,-517.73665328,0.00027121,3]
[329436311,1718339533903,-500.0,0.00027121,3]
[329436312,1718339533914,-500.0,0.00027121,3]
[329436313,1718339533971,-531.15,0.00027121,3]
[329436314,1718339533985,-542.84,0.00027121,3]
[329436315,1718339534017,-1349.75,0.00027121,3]
[329436316,1718339534030,-701.93,0.00027121,3]
[329436317,1718339534048,-999.06,0.00027121,3]
[329436318,1718339534064,-4942.89,0.00027121,3]
[329436319,1718339534076,-295.48524901,0.00027122,3]
[329436320,1718339534239,-249.2761923,0.00027122,3]
[329436321,1718339534267,-620.92283701,0.00027122,3]
[329436322,1718339534281,-500.0,0.00027122,3]
[329436323,1718339534301,-500.0,0.00027122,3]
[329436324,1718339534324,-818.16,0.00027122,3]
[329436325,1718339534336,-3270.76,0.00027122,3]
[329436326,1718339534354,-661.36,0.00027122,3]
[329436327,1718339534394,-502.95,0.00027122,3]
[329436328,1718339534408,-580.28,0.00027122,3]
[329436329,1718339534435,-342.41525909,0.00027123,3]
[329436330,1718339534460,-612.06,0.00027123,3]
[329436331,1718339534473,-500.0,0.00027123,3]
[329436332,1718339534493,-500.0,0.00027123,3]
[329436333,1718339534513,-500.0,0.00027123,3]
[329436334,1718339534536,-500.0,0.00027123,3]
[329436335,1718339534547,-643.86263475,0.00027123,3]
[329436336,1718339534574,-500.0,0.00027123,3]
[329436337,1718339534587,-6561.12,0.00027123,3]
[329436338,1718339534603,-500.0,0.00027123,3]
[329436339,1718339534618,-531.91,0.00027123,3]
[329436340,1718339534629,-500.0,0.00027123,3]
[329436341,1718339534646,-500.0,0.00027123,3]